Cogmind - Beta 14 --- EXPLORER MODE // 2025.05.03 @ 03:33:34 Player: Zaltroth Result: Destroyed by B-74 Champion with Powered Hammer Performance ------------- Evolutions (9) 4500 Regions Visited (20) 4000 Robots Destroyed (122) 610 Value Destroyed (4748) 4748 Prototype IDs (19) 380 Alien Tech Used (1) 200 Bonus (240) 240 TOTAL SCORE: 14678 Bonus ------- High Alert Combat Kills 78 Follower Combat Kills 394 Entered DSFs 500 Friendly Fire -732 Cogmind --------- Core Integrity 0/1600 Matter 282/300 Energy 98/100 System Corruption 10% Temperature Cool (9) Movement Core (50) Location -1/Command Parts ------- > --- POWER (3) -------- (None) > --- PROPULSION (7) --- (None) > --- UTILITY (14) ----- (None) > --- WEAPON (2) ------- (None) > --- INVENTORY (5) ---- Q-thruster Advanced Sensor Array Advanced Transmission Jammer Point Singularity Launcher Dirty Datajack (20) Peak State ------------ > --- POWER ------------ Micro Fission Core Micro Fission Core Micro Antimatter Reactor > --- PROPULSION ------- Field Propulsion Array Impulse Thruster Array Impulse Thruster Array Experimental Q-thruster > --- UTILITY ---------- Medium Storage Unit Enhanced Optical Array Advanced Sensor Array Advanced Signal Interpreter Advanced Melee Analysis Suite Advanced Launcher Guidance Computer Advanced Target Analyzer Microactuators Advanced Transmission Jammer Improved Phase Shifter Improved Weapon Shielding Point Defense Array System Shield Advanced System Shield > --- WEAPON ----------- Dirty Datajack Enhanced Force Lance > --- INVENTORY -------- Micro Antimatter Reactor Cooled Field Propulsion Drive Field Propulsion Array Q-thruster Advanced Sensor Array System Restoration Module Point Singularity Launcher Dirty Datajack Enhanced Force Lance [Rating: 170] Favorites ----------- Power Micro Fission Core Engine Light Angular Momentum Engine Power Core Micro Fission Core Reactor Micro Antimatter Reactor Propulsion Improved VTOL Module Treads Light Treads Leg Aluminum Leg Hover Unit Improved Hover Unit Flight Unit Improved VTOL Module Utility Microactuators Device Microactuators Storage Medium Storage Unit Processor Advanced Signal Interpreter Hackware System Shield Protection Propulsion Shielding Weapon Shock Maul Energy Gun Small Laser Energy Cannon Beam Cannon Ballistic Gun Improved Assault Rifle Ballistic Cannon Mini Assault Cannon Launcher Shock Bomb Launcher Impact Weapon Shock Maul Slashing Weapon Mining Claw Piercing Weapon Enhanced Force Lance Special Melee Weapon Dirty Datajack Build | -11 -10 -9 -9 -8 -7 -6 -6 -6 -5 -5 -5 -4 -4 -4 -3 -3 -2 -2 -1 -1 ------- Run | Yrd Mat Mat Sto Mat Fac Fac Low Low Fac Upp Upp Fac Upp Upp Res DSF Res Tes Acc Com Slots Evolved 18 | . 1 2 . 2 2 2 . . 2 . . 2 . . 2 . 2 . 1 . Power 1 | . . . . . . . . . . . . . . . . . 1 . . . Propulsion 5 | . . 1 . 1 . . . . 1 . . 1 . . . . 1 . . . Utility 12 | . 1 1 . 1 2 2 . . 1 . . 1 . . 2 . . . 1 . Weapon . | . . . . . . . . . . . . . . . . . . . . . Parts Attached 208 | 7 3 7 30 28 6 10 12 . 5 4 . 20 3 . 9 10 5 5 25 19 Power 29 | 1 . . 8 5 . 2 2 . 1 . . 4 . . . 2 1 . 3 . Engine 11 | 1 . . 4 2 . 1 2 . 1 . . . . . . . . . . . Core 13 | . . . 4 3 . 1 . . . . . 1 . . . 2 1 . 1 . Reactor 5 | . . . . . . . . . . . . 3 . . . . . . 2 . Propulsion 48 | 2 2 3 11 8 . 1 . . 1 2 . 4 . . 5 . 1 . 7 1 Treads 12 | . 2 . 8 2 . . . . . . . . . . . . . . . . Leg 2 | 2 . . . . . . . . . . . . . . . . . . . . Wheel . | . . . . . . . . . . . . . . . . . . . . . Hover 6 | . . 3 3 . . . . . . . . . . . . . . . . . Flight 28 | . . . . 6 . 1 . . 1 2 . 4 . . 5 . 1 . 7 1 Utility 87 | 2 1 1 2 12 5 6 6 . 1 1 . 11 . . 3 2 2 4 14 14 Device 51 | . . 1 2 4 3 4 4 . . 1 . 6 . . 2 2 . 3 10 9 Storage 5 | 1 . . . 2 1 . . . . . . 1 . . . . . . . . Processor 18 | 1 1 . . 4 . . 2 . 1 . . 4 . . . . . . 3 2 Hackware 6 | . . . . 1 . . . . . . . . . . . . 2 1 . 2 Protection 7 | . . . . 1 1 2 . . . . . . . . 1 . . . 1 1 Artifact . | . . . . . . . . . . . . . . . . . . . . . Weapon 44 | 2 . 3 9 3 1 1 4 . 2 1 . 1 3 . 1 6 1 1 1 4 Energy Gun 6 | 2 . 2 1 1 . . . . . . . . . . . . . . . . Energy Cannon 2 | . . 1 1 . . . . . . . . . . . . . . . . . Ballistic Gun 5 | . . . 5 . . . . . . . . . . . . . . . . . Ballistic Cannon 2 | . . . 1 . . . . . . . . . . . . 1 . . . . Launcher 12 | . . . . 2 . . 2 . 1 . . . 1 . . 3 . 1 . 2 Special Weapon . | . . . . . . . . . . . . . . . . . . . . . Impact Weapon 5 | . . . . . . 1 2 . 1 . . . 1 . . . . . . . Slashing Weapon 2 | . . . 1 . 1 . . . . . . . . . . . . . . . Piercing Weapon 3 | . . . . . . . . . . . . . . . . . 1 . . 2 Special Melee Weapon 7 | . . . . . . . . . . 1 . 1 1 . 1 2 . . 1 . Unidentified Prototypes 18 | . . . 5 3 . 2 1 . . . . . . . . . . 4 3 . Parts Lost 37 | . . . 5 . . . 1 . . . . 7 . . . 1 . 1 10 12 Power 7 | . . . 2 . . . . . . . . 2 . . . . . . 1 2 Propulsion 9 | . . . 3 . . . . . . . . 3 . . . . . . . 3 Utility 18 | . . . . . . . 1 . . . . 2 . . . . . . 9 6 Weapon 3 | . . . . . . . . . . . . . . . . 1 . 1 . 1 Highest Loss Streak 12 | . . . 3 . . . 1 . . . . 3 . . . 1 . 1 6 12 To Critical Strikes 1 | . . . . . . . . . . . . . . . . . . . . 1 Average Slot Usage (%) 89 | . 94 95 96 93 91 89 86 88 88 88 89 85 89 90 85 85 86 88 85 80 Engine 2 | . 12 10 2 . . . 5 5 5 5 5 2 . . . . . . . . Core 4 | . . . 7 8 7 6 . . . . . 1 . . . . 12 12 7 6 Treads 6 | . 24 5 24 12 . . . . . . . . . . . . . . . . Hover 2 | . . 21 5 . . . . . . . . . . . . . . . . . Flight 15 | . . . . 19 28 25 23 23 26 24 21 21 23 23 20 21 20 20 15 14 Device 17 | . . 8 17 9 14 18 21 23 21 21 21 21 19 19 20 23 16 15 21 16 Storage 6 | . 12 10 10 8 7 6 5 5 5 5 5 4 4 4 4 4 4 4 3 2 Processor 16 | . 19 20 11 20 19 12 8 11 14 15 15 18 28 28 21 21 20 17 16 15 Hackware 2 | . . . . 2 . . . . . . . . . . . . 5 10 7 7 Protection 3 | . . . . . 7 14 13 11 10 10 10 3 . . 4 4 4 4 1 3 Energy Gun 1 | . 25 13 . . . . . . . . . . . . . . . . . . Ballistic Gun 2 | . . . 12 3 . . . . . . . . . . . . . . . . Ballistic Cannon 1 | . . . 3 8 5 . . . . . . . . . . . . . . . Impact Weapon 1 | . . . . . . 6 4 5 4 5 5 4 3 4 4 1 . . . . Special Melee Weapon 1 | . . . . . . . . . . 1 5 3 3 4 4 3 . . 2 2 Peak Build Rating 170 | 7 10 15 24 41 42 50 62 60 76 81 80 116 115 115 121 128 137 150 165 170 Average Rating 75 | 5 8 13 20 33 40 46 54 60 70 72 80 93 114 115 119 120 135 139 159 153 On Entrance 73 | . 7 10 15 24 37 42 49 60 60 71 80 80 115 115 115 121 122 137 141 148 Naked Turns 19 | . . . . . . . . . . . . . . . . . . . . 19 Heaviest Build 53 | 17 17 20 29 29 20 23 30 26 26 27 27 32 37 32 41 52 49 47 53 53 Greatest Support 82 | 20 40 40 60 82 29 29 29 29 26 35 28 39 39 39 41 41 47 47 55 53 Greatest Overweight (x) 4 | 3 . . 1 4 . . 1 . . . . . . . 1 1 1 . . 1 Average Overweight (x) . | . . . . . . . . . . . . . . . . . . . . . Largest Inventory Capacity 10 | 10 10 10 10 10 8 8 8 8 8 8 8 10 10 10 10 10 10 10 10 10 Average Capacity 9 | 9 10 10 10 9 8 8 8 8 8 8 8 8 10 10 10 10 10 10 10 9 Most Carried 10 | 10 10 10 10 10 8 8 8 8 8 8 8 10 10 10 10 10 10 10 10 10 Average Carried 8 | 5 8 9 9 8 6 7 7 8 7 7 8 7 9 10 9 9 8 9 9 9 Final Capacity 10 | 10 10 10 10 8 8 8 8 8 8 8 8 10 10 10 10 10 10 10 10 5 Final Carried 10 | 7 10 10 10 8 7 8 8 8 8 8 8 10 10 10 10 10 9 10 9 5 Class Distribution -------------------- 27% | Hacker-Scout 26% | Hacker-Ninja 19% | Hacker-Mutant 9% | Hacker-Sprinter 9% | Commander-Mutant 3% | Wizard-Ninja Dominant Class ---------------- Hacker-Mutant | -10/Materials Hacker-Mutant | -9/Materials Commander-Mutant | -9/Storage Hacker-Scout | -8/Materials Hacker-Scout | -7/Factory Hacker-Scout | -6/Factory Hacker-Sprinter | -6/Lower Caves Hacker-Sprinter | -6/Lower Caves Hacker-Scout | -5/Factory Hacker-Scout | -5/Upper Caves Hacker-Scout | -5/Upper Caves Hacker-Scout | -4/Factory Hacker-Ninja | -4/Upper Caves Hacker-Ninja | -4/Upper Caves Hacker-Ninja | -3/Research Hacker-Ninja | -3/DSF Hacker-Ninja | -2/Research Wizard-Ninja | -2/Testing Hacker-Ninja | -1/Access Hacker-Ninja | -1/Command Resources | -11 -10 -9 -9 -8 -7 -6 -6 -6 -5 -5 -5 -4 -4 -4 -3 -3 -2 -2 -1 -1 ----------- Run | Yrd Mat Mat Sto Mat Fac Fac Low Low Fac Upp Upp Fac Upp Upp Res DSF Res Tes Acc Com Matter Collected 3231 | 197 82 98 332 604 35 144 277 . 41 125 . 223 78 16 . 30 317 60 190 382 Remotely . | . . . . . . . . . . . . . . . . . . . . . Salvage Created 5137 | . 30 527 779 522 35 144 491 . 11 16 . 482 78 . . 114 248 170 1016 474 Parts 254 | . 3 29 39 32 2 . 15 . . . . 20 . . . 14 14 4 59 23 Haulers Intercepted 8 | . . 1 1 5 1 . . . . . . . . . . . . . . . Recyclers Shooed 3 | . . 1 2 . . . . . . . . . . . . . . . . . Parts Field Recycled . | . . . . . . . . . . . . . . . . . . . . . Retrieved Matter . | . . . . . . . . . . . . . . . . . . . . . Parts Self-Destructed . | . . . . . . . . . . . . . . . . . . . . . Prevented . | . . . . . . . . . . . . . . . . . . . . . Kills | -11 -10 -9 -9 -8 -7 -6 -6 -6 -5 -5 -5 -4 -4 -4 -3 -3 -2 -2 -1 -1 ------- Run | Yrd Mat Mat Sto Mat Fac Fac Low Low Fac Upp Upp Fac Upp Upp Res DSF Res Tes Acc Com Combat Hostiles Destroyed 78 | . . 11 11 7 . 1 12 . 1 1 . 7 1 . . 8 1 . 9 8 Melee 29 | . . . 6 . . . 5 . . . . 5 . . . 1 1 . 8 3 Guns 14 | . . 8 5 1 . . . . . . . . . . . . . . . . Cannons 7 | . . 3 . 4 . . . . . . . . . . . . . . . . AOE 19 | . . . . 2 . . 2 . 1 . . . 1 . . 7 . . 1 5 Classes Destroyed 14 | . 1 5 2 1 . . 2 . . . . 1 . . . 1 . . 1 . Worker 1 | . . . . 1 . . . . . . . . . . . . . . . . Tunneler 3 | . . 1 . . . . . . . . . 2 . . . . . . . . Hauler 8 | . . 1 1 5 1 . . . . . . . . . . . . . . . Recycler 8 | . . . 4 . . 1 . . . . . . . . . . 1 1 . 1 Operator 3 | . . . 1 1 . . . . . . . . . . . . 1 . . . Watcher 20 | . 1 1 . 4 . . . . . . . 3 . . . . . 1 8 2 Swarmer 16 | . . 3 2 . . . 5 . . 1 . . . . . . . . . 5 Cutter 8 | . . . . . . . . . . . . . . . . 8 . . . . Grunt 20 | . . 5 7 6 . . 1 . . . . . . . . . . . 1 . Duelist 1 | . . . . . . . 1 . . . . . . . . . . . . . Sentry 12 | . . 3 2 1 . 1 1 . 1 . . 2 . . . . . . . 1 Hunter 2 | . . . . . . . . . . . . . . . . . . . 2 . Programmer 16 | . . . . . . . . . . . . 5 1 . . . 1 . 7 2 Thug 1 | . . . . . . . 1 . . . . . . . . . . . . . Savage 3 | . . . . . . . 3 . . . . . . . . . . . . . Best Kill Streak 6 | . 1 5 6 4 1 1 5 . 1 1 . 4 1 . . 5 3 1 4 5 Combat Bots Only 6 | . . 5 5 3 . 1 6 . 1 1 . 2 1 . . 5 1 . 3 5 Max Kills in Single Turn 3 | . 1 1 1 1 1 1 2 . 1 1 . 1 1 . . 3 1 1 1 3 Gunslinging . | . . . . . . . . . . . . . . . . . . . . . Exploded 3 | . . . . 1 . . 2 . 1 . . . 1 . . 3 . . 1 3 Melee 1 | . . . 1 . . . 1 . . . . 1 . . . 1 1 . 1 1 Uniques/NPCs Destroyed . | . . . . . . . . . . . . . . . . . . . . . Combat | -11 -10 -9 -9 -8 -7 -6 -6 -6 -5 -5 -5 -4 -4 -4 -3 -3 -2 -2 -1 -1 -------- Run | Yrd Mat Mat Sto Mat Fac Fac Low Low Fac Upp Upp Fac Upp Upp Res DSF Res Tes Acc Com Hostile Shots Fired 800 | . . 63 46 38 . 36 53 . 4 12 . 42 8 . . 30 10 26 123 309 Missed 352 | . . 12 12 13 . 15 20 . 2 5 . 15 6 . . 17 7 18 80 130 Damage Taken 6179 | . . 399 327 276 . 90 423 . 34 80 . 424 32 . . 512 46 118 909 2509 Core 2248 | . . 88 78 52 . 22 85 . . 11 . 111 . . . 180 . 16 131 1474 Absorbed by Shields 460 | . . . . . . . . . . . . . . . . 58 . . . 402 Redirected to Shielding 176 | . . . . . . . 37 . 5 7 . 4 . . . . . . 11 112 Ignored by Resistances 3670 | . . 250 204 147 . 63 252 . 19 47 . 246 19 . . 325 27 68 341 1662 Regen/Repaired (Parts) 114 | . . . 58 56 . . . . . . . . . . . . . . . . Core Remaining (%) 90 | 100 100 . 58 90 100 . . 87 . . 98 . . 90 . 86 . 98 . . Volleys Fired 139 | . 1 35 12 62 3 . 5 . 6 . . . 4 . . 7 . . . 4 Largest 2 | . 2 2 2 2 1 . 1 . 1 . . . 1 . . 1 . . . 1 Hottest 100 | . 80 100 71 71 48 . 36 . 46 . . . 46 . . 46 . . . 55 Shots Fired 197 | . 2 70 24 72 3 . 5 . 6 . . . 4 . . 7 . . . 4 Gun 87 | . 2 53 22 10 . . . . . . . . . . . . . . . . Cannon 81 | . . 17 2 59 3 . . . . . . . . . . . . . . . Launcher 29 | . . . . 3 . . 5 . 6 . . . 4 . . 7 . . . 4 Special . | . . . . . . . . . . . . . . . . . . . . . Kinetic 96 | . . . 24 69 3 . . . . . . . . . . . . . . . Thermal 72 | . 2 70 . . . . . . . . . . . . . . . . . . Explosive 21 | . . . . . . . . . 6 . . . 4 . . 7 . . . 4 Electromagnetic 8 | . . . . 3 . . 5 . . . . . . . . . . . . . Robot Hit Streak 24 | . 2 14 12 24 10 . 11 . 5 . . . . . . 7 . . . 8 Robot Miss Streak 3 | . . 1 1 3 . . 1 . . . . . . . . . . . . 2 Penetration Max . | . . . . . . . . . . . . . . . . . . . . . Secondary Targets 2 | . . 1 1 . . . . . . . . . . . . . . . . . Max Gunslinging Chain 1 | . . 1 1 . . . . . . . . . . . . . . . . . Shots Hit Robots 345 | . 2 56 52 58 3 7 31 . 4 3 . 40 1 . . 13 7 4 46 18 Core Hits 141 | . 1 25 22 24 1 1 6 . 5 . . 8 1 . . 13 2 1 17 14 Critical Kills 8 | . . . . 1 . . 4 . . . . 3 . . . . . . . . Critical Parts Destroyed 18 | . . . . . . 1 6 . . . . 11 . . . . . . . . Critical Strikes 47 | . . . . 3 . 1 11 . . . . 14 . . . . 2 1 10 5 Destroy 1 | . . . . 1 . . . . . . . . . . . . . . . . Blast 2 | . . . . 2 . . . . . . . . . . . . . . . . Smash 26 | . . . . . . 1 11 . . . . 14 . . . . . . . . Impale 18 | . . . . . . . . . . . . . . . . . 2 1 10 5 Melee Attacks 256 | . . . 38 . . 7 30 . . 8 . 45 1 . . 11 10 5 85 16 Impact 83 | . . . . . . 7 30 . . 8 . 37 1 . . . . . . . Slashing 38 | . . . 38 . . . . . . . . . . . . . . . . . Piercing 135 | . . . . . . . . . . . . 8 . . . 11 10 5 85 16 Sneak Attacks 30 | . . . 6 . . 1 . . . . . 6 . . . 1 2 1 9 4 Combat Hostiles 12 | . . . 1 . . . . . . . . 4 . . . 1 . . 5 1 Follow-up Attacks . | . . . . . . . . . . . . . . . . . . . . . Damage Inflicted 14735 | . 24 684 1209 1623 74 366 1540 . 215 136 . 2075 279 . . 706 633 275 2924 1972 Guns 923 | . 24 492 260 147 . . . . . . . . . . . . . . . . Cannons 1547 | . . 192 26 1255 74 . . . . . . . . . . . . . . . Explosions 2290 | . . . . 221 . . 71 . 215 . . . 156 . . 666 . . . 961 Melee 9975 | . . . 923 . . 366 1469 . . 136 . 2075 123 . . 40 633 275 2924 1011 Ramming . | . . . . . . . . . . . . . . . . . . . . . Kinetic 1762 | . . . 286 1402 74 . . . . . . . . . . . . . . . Thermal 776 | . 24 684 . 68 . . . . . . . . . . . . . . . . Explosive 1998 | . . . . . . . . . 215 . . . 156 . . 666 . . . 961 Electromagnetic 224 | . . . . 153 . . 71 . . . . . . . . . . . . . Impact 4137 | . . . . . . 366 1469 . . 136 . 2043 123 . . . . . . . Slashing 923 | . . . 923 . . . . . . . . . . . . . . . . . Piercing 4915 | . . . . . . . . . . . . 32 . . . 40 633 275 2924 1011 Highest Corruption 12 | . 1 . 1 . . . 2 2 . . . 1 1 1 . . . 1 12 12 Average Corruption 2 | . 1 . 1 . . . 2 2 . . . 1 1 1 . . . 1 2 10 Corruption Purged 5 | . . . . . . . . . . . . . . . . . . . . 5 Corruption Blocked . | . . . . . . . . . . . . . . . . . . . . . Effects 42 | . 2 . 7 . . . 2 2 . . . 7 . . . . . . 10 12 Message Errors 15 | . 1 . 2 . . . . 1 . . . 1 . . . . . . 7 3 Matter Fused 8 | . 1 . 2 . . . . . . . . 2 . . . . . . . 3 Heat Flow Errors 4 | . . . 1 . . . . . . . . 2 . . . . . . 1 . Energy Discharges 7 | . . . 1 . . . 1 . . . . 1 . . . . . . 2 2 Parts Fused 1 | . . . . . . . . 1 . . . . . . . . . . . . Data Loss (minor) 5 | . . . 1 . . . 1 . . . . 1 . . . . . . . 2 Data Loss (major) 1 | . . . . . . . . . . . . . . . . . . . . 1 Alerts 1 | . . . . . . . . . . . . . . . . . . . . 1 Overload Shots . | . . . . . . . . . . . . . . . . . . . . . Overflow Damage 2955 | . . . 31 19 4 152 439 . . 46 . 925 99 . . . 125 69 845 201 Projectiles 23 | . . . . 19 4 . . . . . . . . . . . . . . . Explosions 55 | . . . . . . . . . . . . . . . . . . . . 55 Melee 2877 | . . . 31 . . 152 439 . . 46 . 925 99 . . . 125 69 845 146 Knockbacks 19 | . . . . 8 . . . . . 1 . 10 . . . . . . . . Impact 11 | . . . . . . . . . . 1 . 10 . . . . . . . . Kinetic 8 | . . . . 8 . . . . . . . . . . . . . . . . Secondary . | . . . . . . . . . . . . . . . . . . . . . Self-Inflicted Damage 115 | . . . . . . . 13 . . . . . 5 . . 97 . . . . Shots 4 | . . . . . . . 1 . . . . . 1 . . 2 . . . . Rammed . | . . . . . . . . . . . . . . . . . . . . . Targets Rammed . | . . . . . . . . . . . . . . . . . . . . . Kicked . | . . . . . . . . . . . . . . . . . . . . . Crushed . | . . . . . . . . . . . . . . . . . . . . . Highest Temperature 479 | . 18 479 275 137 30 . 6 . 7 13 . 178 4 . . 2 238 104 185 84 Average Temperature 61 | . 12 113 67 40 17 . 4 . 4 6 . 69 2 . . 2 73 45 27 29 Received Heat Transfer 1014 | . . 282 243 189 . 42 42 . 9 27 . 9 . . . . 9 . 45 117 Effects 3 | . . 3 . . . . . . . . . . . . . . . . . . Shutdowns 1 | . . 1 . . . . . . . . . . . . . . . . . . Energy Bleed 1 | . . 1 . . . . . . . . . . . . . . . . . . Damage (minor) 1 | . . 1 . . . . . . . . . . . . . . . . . . Siege Activations . | . . . . . . . . . . . . . . . . . . . . . Robots Corrupted 12 | . . . . . . 2 5 . . 1 . 4 . . . . . . . . Combat Hostiles 9 | . . . . . . 1 5 . . 1 . 2 . . . . . . . . Parts Fried 13 | . . . . . . 2 3 . . . . 8 . . . . . . . . Impact Corruptions 52 | . . . . . . 6 12 . . 2 . 28 4 . . . . . . . Robots Melted . | . . . . . . . . . . . . . . . . . . . . . Combat Hostiles . | . . . . . . . . . . . . . . . . . . . . . Parts Melted 5 | . . 4 . . . . . . . . . . . . . 1 . . . . Heat Transferred 1632 | . 50 1532 . 50 . . . . . . . . . . . . . . . . Parts Sabotaged . | . . . . . . . . . . . . . . . . . . . . . Parts Stolen . | . . . . . . . . . . . . . . . . . . . . . Parts Stripped . | . . . . . . . . . . . . . . . . . . . . . Power Chain Reactions 2 | . . . . 1 . . 1 . . . . . . . . . . . . . Alert | -11 -10 -9 -9 -8 -7 -6 -6 -6 -5 -5 -5 -4 -4 -4 -3 -3 -2 -2 -1 -1 ------- Run | Yrd Mat Mat Sto Mat Fac Fac Low Low Fac Upp Upp Fac Upp Upp Res DSF Res Tes Acc Com Peak Influence 654 | . 22 362 240 260 28 112 . . 133 . . 334 . . 59 399 253 222 404 654 Initial 168 | . . 6 43 . 21 9 . . 19 . . 58 . . 59 34 168 58 100 42 Average 113 | . 5 134 55 107 26 30 . . 99 . . 77 . . 59 218 210 137 153 388 Maximum Alert Level 2 | . . 1 1 1 . . . . . . . 1 . . . 1 1 1 2 2 Low Security (%) 80 | 100 100 82 91 68 100 100 . . 100 . . 93 . . 100 64 34 98 65 21 Level 1 16 | . . 17 8 31 . . . . . . . 6 . . . 35 65 1 32 8 Level 2 3 | . . . . . . . . . . . . . . . . . . . 1 69 Level 3 . | . . . . . . . . . . . . . . . . . . . . . Level 4 . | . . . . . . . . . . . . . . . . . . . . . Level 5 . | . . . . . . . . . . . . . . . . . . . . . High Security . | . . . . . . . . . . . . . . . . . . . . . Max Security . | . . . . . . . . . . . . . . . . . . . . . Sterilizations 1 | . . . . . . . . . . . . . . . . 1 . . . . Squads Dispatched 20 | . . 3 1 1 . . . . 1 . . 3 . . . 3 2 1 5 . Investigation 2 | . . 1 . . . . . . . . . . . . . . . . 1 . Extermination 7 | . . . . . . . . . . . . 2 . . . . 1 1 3 . Reinforcement 10 | . . 2 1 1 . . . . 1 . . . . . . 3 1 . 1 . Assault 1 | . . . . . . . . . . . . 1 . . . . . . . . Garrison . | . . . . . . . . . . . . . . . . . . . . . Intercept . | . . . . . . . . . . . . . . . . . . . . . Searches Triggered . | . . . . . . . . . . . . . . . . . . . . . Construction Impeded 1 | . . . . . . . . . 1 . . . . . . . . . . . Haulers Reinforced . | . . . . . . . . . . . . . . . . . . . . . Active Scanning Responses . | . . . . . . . . . . . . . . . . . . . . . Cargo Convoy Interrupts . | . . . . . . . . . . . . . . . . . . . . . Stealth | -11 -10 -9 -9 -8 -7 -6 -6 -6 -5 -5 -5 -4 -4 -4 -3 -3 -2 -2 -1 -1 --------- Run | Yrd Mat Mat Sto Mat Fac Fac Low Low Fac Upp Upp Fac Upp Upp Res DSF Res Tes Acc Com Distress Signals 11 | . 1 2 2 1 . 1 . . . . . 2 . . . . . . . 2 Communications Jammed 25 | . . . . . . . . . . . . . . . . . 5 11 9 . Distress Signals 25 | . . . . . . . . . . . . . . . . . 5 11 9 . Times Spotted 232 | . 2 19 19 24 . 2 17 . 2 12 . 20 5 . . 16 6 12 39 37 Peak Tracking Total 14 | . 2 6 7 4 . 2 4 . 1 9 . 7 5 . . 5 4 9 9 14 Tactical Retreats 35 | . 1 2 1 3 . . 2 . . 4 . 4 2 . . 4 . . 7 5 Traps | -11 -10 -9 -9 -8 -7 -6 -6 -6 -5 -5 -5 -4 -4 -4 -3 -3 -2 -2 -1 -1 ------- Run | Yrd Mat Mat Sto Mat Fac Fac Low Low Fac Upp Upp Fac Upp Upp Res DSF Res Tes Acc Com Traps Triggered 18 | . 2 . 5 . . . . . . . . . . . . 2 . . . 9 Indirectly . | . . . . . . . . . . . . . . . . . . . . . Trap Hack Attempts . | . . . . . . . . . . . . . . . . . . . . . Triggered . | . . . . . . . . . . . . . . . . . . . . . Disarmed . | . . . . . . . . . . . . . . . . . . . . . Reprogrammed . | . . . . . . . . . . . . . . . . . . . . . Reused . | . . . . . . . . . . . . . . . . . . . . . Traps Extracted . | . . . . . . . . . . . . . . . . . . . . . Installed . | . . . . . . . . . . . . . . . . . . . . . Triggered 3 | . . . . . . . . . . 2 . . . 1 . . . . . . Machines | -11 -10 -9 -9 -8 -7 -6 -6 -6 -5 -5 -5 -4 -4 -4 -3 -3 -2 -2 -1 -1 ---------- Run | Yrd Mat Mat Sto Mat Fac Fac Low Low Fac Upp Upp Fac Upp Upp Res DSF Res Tes Acc Com Machines Disabled 6 | . . . . . . . . . . . . 3 . . . . . 1 2 . Max in Single Turn 1 | . . . . . . . . . . . . . . . . . . 1 . . Garrison Access 1 | . . . . . . . . . . . . 1 . . . . . . . . Machines Repaired . | . . . . . . . . . . . . . . . . . . . . . Machines Dismantled . | . . . . . . . . . . . . . . . . . . . . . Machines Sabotaged . | . . . . . . . . . . . . . . . . . . . . . Overloaded Fab Kills . | . . . . . . . . . . . . . . . . . . . . . Hacking | -11 -10 -9 -9 -8 -7 -6 -6 -6 -5 -5 -5 -4 -4 -4 -3 -3 -2 -2 -1 -1 --------- Run | Yrd Mat Mat Sto Mat Fac Fac Low Low Fac Upp Upp Fac Upp Upp Res DSF Res Tes Acc Com Machines Accessed 66 | . 2 3 16 8 1 5 1 . 2 1 . 8 . . 2 . 3 4 8 2 Terminals 43 | . 1 2 12 4 1 2 . . 1 . . 6 . . 1 . 3 3 6 1 Fabricators 3 | . . . . . . 1 . . . . . 1 . . . . . . 1 . Repair Stations 4 | . . . 2 1 . . . . . . . . . . . . . . . 1 Recycling Units 4 | . 1 . 1 1 . . . . 1 . . . . . . . . . . . Scanalyzers 6 | . . 1 . 2 . 1 . . . . . . . . . . . 1 1 . Garrison Access 4 | . . . 1 . . 1 . . . . . 1 . . 1 . . . . . Total Hacks 186 | . 6 25 46 25 1 10 5 . 2 1 . 19 . . 4 . 12 13 13 4 Successful 125 | . 2 20 31 18 . 5 5 . 1 1 . 11 . . 3 . 6 11 8 3 Failed 61 | . 4 5 15 7 1 5 . . 1 . . 8 . . 1 . 6 2 5 1 Catastrophic 9 | . . 3 1 2 . 1 . . . . . . . . . . . . 2 . Database Lockouts . | . . . . . . . . . . . . . . . . . . . . . Manual 97 | . 4 14 25 11 1 1 . . 1 . . 14 . . 3 . 5 9 5 4 Terminals 124 | . 4 15 36 13 1 4 . . 1 . . 16 . . 1 . 12 8 10 3 Fabricators 5 | . . . . . . 2 . . . . . 1 . . . . . . 2 . Repair Stations 11 | . . . 6 4 . . . . . . . . . . . . . . . 1 Recycling Units 6 | . 2 . 2 1 . . . . 1 . . . . . . . . . . . Scanalyzers 25 | . . 10 . 7 . 2 . . . . . . . . . . . 5 1 . Garrison Access 9 | . . . 2 . . 2 . . . . . 2 . . 3 . . . . . Terminal Hacks 45 | . . 3 14 3 . 2 5 . 1 1 . 4 . . 1 . 6 . 5 . Record 11 | . . 1 1 . . 2 5 . . . . . . . . . 1 . 1 . Robot Analysis 2 | . . . 2 . . . . . . . . . . . . . . . . . Prototype ID Bank 1 | . . . . 1 . . . . . . . . . . . . . . . . Open Door 8 | . . . 4 . . . . . . 1 . . . . . . . . 3 . Open DSF 4 | . . . . . . . . . 1 . . 2 . . 1 . . . . . Branch Access Points 3 | . . 1 . . . . . . . . . . . . . . 1 . 1 . Terminal Index 2 | . . 1 . 1 . . . . . . . . . . . . . . . . Alert Level 5 | . . . 2 1 . . . . . . . 1 . . . . 1 . . . Unreport Threat 2 | . . . 1 . . . . . . . . . . . . . 1 . . . Investigation Status 1 | . . . 1 . . . . . . . . . . . . . . . . . Recall Reinforcements 1 | . . . . . . . . . . . . . . . . . 1 . . . Registered Components 3 | . . . 1 . . . . . . . . 1 . . . . 1 . . . Zone Layout 2 | . . . 2 . . . . . . . . . . . . . . . . . Fabricator Hacks 4 | . . . . . . 2 . . . . . 1 . . . . . . 1 . Load Schematic 1 | . . . . . . 1 . . . . . . . . . . . . . . Build 3 | . . . . . . 1 . . . . . 1 . . . . . . 1 . Repair Station Hacks 9 | . . . 5 4 . . . . . . . . . . . . . . . . Scan Component 5 | . . . 3 2 . . . . . . . . . . . . . . . . Repair 4 | . . . 2 2 . . . . . . . . . . . . . . . . Recycling Unit Hacks 1 | . 1 . . . . . . . . . . . . . . . . . . . Report Inventory 1 | . 1 . . . . . . . . . . . . . . . . . . . Scanalyzer 22 | . . 10 . 7 . 1 . . . . . . . . . . . 4 . . Insert Component 12 | . . 5 . 4 . 1 . . . . . . . . . . . 2 . . Analyze 10 | . . 5 . 3 . . . . . . . . . . . . . 2 . . Garrison Access Hacks . | . . . . . . . . . . . . . . . . . . . . . Unauthorized Hacks 44 | . 1 7 12 4 . . . . . . . 6 . . 2 . . 7 2 3 Terminals 34 | . 1 7 9 4 . . . . . . . 4 . . . . . 6 . 3 Track 11 | . . 2 3 1 . . . . . . . 1 . . . . . 3 . 1 Assimilate 2 | . . 1 . . . . . . . . . . . . . . . 1 . . Botnet 15 | . 1 2 6 2 . . . . . . . 2 . . . . . 1 . 1 Operators 6 | . . 2 . 1 . . . . . . . 1 . . . . . 1 . 1 Fabricators 1 | . . . . . . . . . . . . . . . . . . . 1 . Report 1 | . . . . . . . . . . . . . . . . . . . 1 . Repair Stations . | . . . . . . . . . . . . . . . . . . . . . Recycling Units 2 | . . . 2 . . . . . . . . . . . . . . . . . Reject 1 | . . . 1 . . . . . . . . . . . . . . . . . Mask 1 | . . . 1 . . . . . . . . . . . . . . . . . Scanalyzers 2 | . . . . . . . . . . . . . . . . . . 1 1 . Researchers 2 | . . . . . . . . . . . . . . . . . . 1 1 . Garrison Access 5 | . . . 1 . . . . . . . . 2 . . 2 . . . . . Broadcast 2 | . . . . . . . . . . . . 1 . . 1 . . . . . Reprogram 2 | . . . 1 . . . . . . . . 1 . . . . . . . . Watchers 1 | . . . . . . . . . . . . . . . 1 . . . . . Data Cores Recovered 1 | . . . . . . . . . . . . . . . . . 1 . . . Used . | . . . . . . . . . . . . . . . . . . . . . Hacking Detections 53 | . 2 3 13 7 1 5 . . 1 . . 5 . . 2 . 3 3 6 2 Full Trace Events 2 | . . 1 1 . . . . . . . . . . . . . . . . . Feedback Events 1 | . . . 1 . . . . . . . . . . . . . . . . . Corruption 1 | . . . 1 . . . . . . . . . . . . . . . . . Feedback Blocked . | . . . . . . . . . . . . . . . . . . . . . Robot Schematics Acquired . | . . . . . . . . . . . . . . . . . . . . . Robots Built 3 | . . . . . . . . . . . . 2 . . . . . . 1 . Authchips . | . . . . . . . . . . . . . . . . . . . . . Time 89 | . . . . . . . . . . . . 27 . . . . . . 62 . Total Robot Build Rating 9 | . . . . . . . . . . . . 2 . . . . . . 7 . Part Schematics Acquired 9 | . . 4 . 3 . . . . . . . . . . . . . 2 . . Parts Built 2 | . . . . . . 2 . . . . . . . . . . . . . . Authchips . | . . . . . . . . . . . . . . . . . . . . . Time 25 | . . . . . . 25 . . . . . . . . . . . . . . Total Part Build Rating 2 | . . . . . . 2 . . . . . . . . . . . . . . Parts Repaired 4 | . . . 2 2 . . . . . . . . . . . . . . . . Time 190 | . . . 70 120 . . . . . . . . . . . . . . . . Parts Recycled . | . . . . . . . . . . . . . . . . . . . . . Recycled Matter . | . . . . . . . . . . . . . . . . . . . . . Retrieved Matter . | . . . . . . . . . . . . . . . . . . . . . Retrieved Components . | . . . . . . . . . . . . . . . . . . . . . Parts Scanalyzed 11 | . . 5 . 3 . 1 . . . . . . . . . . . 2 . . Part Schematics Acquired 9 | . . 4 . 3 . . . . . . . . . . . . . 2 . . Parts Damaged 1 | . . . . . . . . . . . . . . . . . . 1 . . Bothacking | -11 -10 -9 -9 -8 -7 -6 -6 -6 -5 -5 -5 -4 -4 -4 -3 -3 -2 -2 -1 -1 ------------ Run | Yrd Mat Mat Sto Mat Fac Fac Low Low Fac Upp Upp Fac Upp Upp Res DSF Res Tes Acc Com Used RIF Installer . | . . . . . . . . . . . . . . . . . . . . . Robots Hacked . | . . . . . . . . . . . . . . . . . . . . . Non-combat . | . . . . . . . . . . . . . . . . . . . . . Combat . | . . . . . . . . . . . . . . . . . . . . . Robot Hacks Applied . | . . . . . . . . . . . . . . . . . . . . . Relay Couplers Released 3 | . . . . . . . . . . . . 3 . . . . . . . . Programmers 3 | . . . . . . . . . . . . 3 . . . . . . . . Fabnet Peak Effective % . | . . . . . . . . . . . . . . . . . . . . . Robots Rewired . | . . . . . . . . . . . . . . . . . . . . . Allies Hacked . | . . . . . . . . . . . . . . . . . . . . . Hacks Repelled . | . . . . . . . . . . . . . . . . . . . . . Allies | -11 -10 -9 -9 -8 -7 -6 -6 -6 -5 -5 -5 -4 -4 -4 -3 -3 -2 -2 -1 -1 -------- Run | Yrd Mat Mat Sto Mat Fac Fac Low Low Fac Upp Upp Fac Upp Upp Res DSF Res Tes Acc Com Total Allies 21 | . . . 10 . . . 2 . . . . 5 . . . . . 1 2 1 Largest Group 10 | . . . 10 7 . . 2 1 . . . 5 . . . . . . 2 1 Highest-Rated Group 162 | . . . 88 61 . . 40 16 . . . 158 . . . . . . 162 64 Highest-Rated Ally 93 | . . . 16 16 . . 20 16 . . . 46 . . . . . . 93 64 Total Orders 34 | . . . 25 6 . . . . . . . . . . . . . . 1 2 GUARD 16 | . . . 10 6 . . . . . . . . . . . . . . . . AID 1 | . . . 1 . . . . . . . . . . . . . . . . . EXPLORE 15 | . . . 13 . . . . . . . . . . . . . . . 1 1 RETURN 2 | . . . 1 . . . . . . . . . . . . . . . . 1 Ally Attacks 167 | . . . 23 100 . . 2 . . . . 42 . . . . . . . . Total Damage 2808 | . . . 216 902 . . 131 . . . . 973 . . . . . . 586 . Kills 23 | . . . 4 11 . . . . . . . 6 . . . . . . 2 . Allies Corrupted 1 | . . . . . . . . . . . . 1 . . . . . . . . Allies Melted . | . . . . . . . . . . . . . . . . . . . . . Intel | -11 -10 -9 -9 -8 -7 -6 -6 -6 -5 -5 -5 -4 -4 -4 -3 -3 -2 -2 -1 -1 ------- Run | Yrd Mat Mat Sto Mat Fac Fac Low Low Fac Upp Upp Fac Upp Upp Res DSF Res Tes Acc Com Robot Analysis Total 2 | . . . 2 . . . . . . . . . . . . . . . . . Derelict Logs Recovered 6 | . . . . . . . 2 . . 1 . . 3 . . . . . . . Drone Launches 19 | . . . 14 . . . . . . . . . . . . . . . 3 2 Drone Recoveries 9 | . . . 6 . . . . . . . . . . . . . . . 1 2 Exploration | -11 -10 -9 -9 -8 -7 -6 -6 -6 -5 -5 -5 -4 -4 -4 -3 -3 -2 -2 -1 -1 ------------- Run | Yrd Mat Mat Sto Mat Fac Fac Low Low Fac Upp Upp Fac Upp Upp Res DSF Res Tes Acc Com Turns Passed 9807 | 98 293 607 1608 1010 145 155 767 170 480 250 28 1378 124 51 157 174 267 315 1317 413 Spaces Moved 10834 | 65 174 336 700 1033 135 297 1143 288 319 747 102 1129 376 180 149 207 628 457 1587 782 Core 31 | 3 . . . . . . . . . . . . . . . . . . . 28 Treads 952 | . 170 36 548 198 . . . . . . . . . . . . . . . . Legs 66 | 62 4 . . . . . . . . . . . . . . . . . . . Wheels . | . . . . . . . . . . . . . . . . . . . . . Hover 452 | . . 300 152 . . . . . . . . . . . . . . . . . Flight 9333 | . . . . 835 135 297 1143 288 319 747 102 1129 376 180 149 207 628 457 1587 754 Fastest Speed 24 | 50 120 52 52 26 26 26 26 26 24 24 27 24 28 28 28 29 28 28 28 28 Average Speed 41 | 121 159 63 136 51 26 26 26 26 24 24 27 27 28 28 31 30 29 28 31 28 Slowest Speed 375 | 200 160 160 160 375 26 26 96 26 24 28 27 32 28 28 115 109 108 28 37 112 Overloaded Moves . | . . . . . . . . . . . . . . . . . . . . . Propulsion Burnouts . | . . . . . . . . . . . . . . . . . . . . . Robots Hopped 37 | . . . . 2 2 . 2 . . 4 . 9 1 . . . 1 5 4 7 Cave-ins Triggered 2 | . . . . 1 . . . . . . . . . . . . . . 1 . Exploration Rate (%) 36 | 5 35 25 94 65 7 11 87 31 5 76 10 28 57 24 5 86 15 36 36 31 Regions Visited 20 Branch Regions 9 Pre-discovered Areas 1 | . . . . . . . 1 . . . . . . . . . . . . . Known Exits Taken 19 | 1 1 1 1 1 1 1 1 1 1 1 1 1 1 1 1 . 1 1 1 . Unknown Exits Taken . | . . . . . . . . . . . . . . . . . . . . . Scrap Searched 6 | . . . . . . . 4 . . 1 . . 1 . . . . . . . Spaces Dug 52 | . . . . 6 . . 1 . . 4 . 3 . . . . 2 . 36 . Terrain Destroyed 326 | . . . 1 25 . . 4 . 52 4 . 3 54 . . 86 2 . 36 59 Melee 46 | . . . . . . . 1 . . 4 . 3 . . . . 2 . 36 . Projectile 14 | . . . 1 13 . . . . . . . . . . . . . . . . AOE 266 | . . . . 12 . . 3 . 52 . . . 54 . . 86 . . . 59 Terrain Rammed . | . . . . . . . . . . . . . . . . . . . . . Walls Destroyed . | . . . . . . . . . . . . . . . . . . . . . Machines Disabled . | . . . . . . . . . . . . . . . . . . . . . Actions | -11 -10 -9 -9 -8 -7 -6 -6 -6 -5 -5 -5 -4 -4 -4 -3 -3 -2 -2 -1 -1 --------- Run | Yrd Mat Mat Sto Mat Fac Fac Low Low Fac Upp Upp Fac Upp Upp Res DSF Res Tes Acc Com Total 15668 | 83 188 657 1250 1441 240 360 1562 382 718 799 101 2162 388 179 258 317 694 630 2328 931 Wait 3964 | . 2 276 439 271 93 35 358 95 375 32 . 939 . . 90 55 51 161 602 90 Move 10741 | 64 173 335 699 1028 130 296 1138 287 318 738 101 1112 373 179 148 206 625 446 1578 767 Hop 35 | . . . . 2 2 . 2 . . 4 . 7 1 . . . 1 5 4 7 Pick Up 98 | 12 6 1 6 16 2 3 5 . 6 6 . 16 3 . 2 2 . 1 10 1 Fast Attach 119 | 2 1 4 22 16 1 7 6 . 2 1 . 15 . . 5 5 2 5 15 10 Attach 53 | 5 . 1 4 5 4 1 2 . 3 1 . 5 3 . 2 4 2 1 8 2 Detach 35 | . . . 2 3 1 2 1 . . . . 4 . . 3 6 2 3 5 3 Swap 38 | . 2 2 4 7 1 2 5 . . 2 . . . . 2 1 1 . 2 7 Drop 151 | . 3 3 19 31 3 7 10 . 8 7 . 19 3 . 6 4 . 3 19 6 Fire 139 | . 1 35 12 62 3 . 5 . 6 . . . 4 . . 7 . . . 4 Melee 256 | . . . 38 . . 7 30 . . 8 . 45 1 . . 11 10 5 85 16 Ram . | . . . . . . . . . . . . . . . . . . . . . Kick . | . . . . . . . . . . . . . . . . . . . . . Crush . | . . . . . . . . . . . . . . . . . . . . . Escape Stasis 34 | . . . . . . . . . . . . . . . . 16 . . . 18 Rewire 1 | . . . 1 . . . . . . . . . . . . . . . . . Trap . | . . . . . . . . . . . . . . . . . . . . . Miscellaneous 4 | . . . 4 . . . . . . . . . . . . . . . . . Route ------- -11/Scrapyard -10/Materials -9/Materials (discovered 4 exits: *Mat / Min x2 / *Sto) -9/Storage -8/Materials (discovered 2 exits: *Fac x2) -7/Factory -6/Factory -6/Lower Caves -6/Lower Caves -5/Factory -5/Upper Caves -5/Upper Caves -4/Factory -4/Upper Caves -4/Upper Caves -3/Research (discovered 2 exits: Qua / DSF) -3/DSF -2/Research (discovered 2 exits: *Tes x2) -2/Testing -1/Access -1/Command History --------- Turn | Location | Event 13 | -11/Scrapyard | Identified exit to Materials 13 | -11/Scrapyard | Discovered exit to Materials (range 15) 99 | -11/Scrapyard | Entered Materials 99 | -10/Materials | Evolved 1 slot: Utility x1 310 | -10/Materials | Build established: Hacker-Mutant 376 | -10/Materials | Identified exit to Materials 376 | -10/Materials | Discovered exit to Materials (range 12) 392 | -10/Materials | Entered another Materials area 392 | -9/Materials | Evolved 2 slots: Propulsion x1, Utility x1 576 | -9/Materials | Identified exit to Mines 576 | -9/Materials | Identified exit to Storage 760 | -9/Materials | Identified exit to Materials 760 | -9/Materials | Discovered exit to Materials (range 9) 999 | -9/Materials | Entered Storage 1039 | -9/Storage | Repaired Imp. Hover Unit 1304 | -9/Storage | Lost 3 parts (1p2n) 1506 | -9/Storage | Discovered exit to Materials (range 44) 1714 | -9/Storage | Assisted by bots powering up and referring to "LRC-V3" 2016 | -9/Storage | Build established: Commander-Mutant 2346 | -9/Storage | Repaired Lgt. Nuclear Core 2607 | -9/Storage | Entered Materials 2607 | -8/Materials | Accompanied by 7 allies 2607 | -8/Materials | Evolved 2 slots: Propulsion x1, Utility x1 3164 | -8/Materials | Identified exit to Factory 3164 | -8/Materials | Discovered exit to Factory (range 4) 3241 | -8/Materials | Build established: Hacker-Scout 3370 | -8/Materials | Crushed by falling debris 3379 | -8/Materials | Lost 3 allies 3467 | -8/Materials | Repaired Imp. VTOL Module 3529 | -8/Materials | Repaired Imp. VTOL Module 3613 | -8/Materials | Discovered exit to Factory (range 6) 3617 | -8/Materials | Entered Factory 3617 | -7/Factory | Evolved 2 slots: Utility x2 3759 | -7/Factory | Identified exit to Factory 3759 | -7/Factory | Discovered exit to Factory (range 4) 3762 | -7/Factory | Entered another Factory area 3762 | -6/Factory | Evolved 2 slots: Utility x2 3816 | -6/Factory | Fabricated Propulsion Shielding (x2) 3913 | -6/Factory | Identified exit to Lower Caves 3913 | -6/Factory | Discovered exit to Lower Caves (range 10) 3917 | -6/Factory | Entered Lower Caves 3920 | -6/Lower Caves | Learned location of Extension (-6) 4043 | -6/Lower Caves | Found Alien Artifact 4043 | -6/Lower Caves | Identified Core Expander 4043 | -6/Lower Caves | Installed Core Expander, added new Power slot 4161 | -6/Lower Caves | Attracted the attention of an 0b10 checkpoint 4226 | -6/Lower Caves | Found DCF Scrap (13 items) 4302 | -6/Lower Caves | Ambushed by wild Derelicts 4463 | -6/Lower Caves | Build established: Hacker-Sprinter 4592 | -6/Lower Caves | A Commander dispatched an escort 4593 | -6/Lower Caves | Learned Armory trap positions 4593 | -6/Lower Caves | Learned Research terminal intel 4593 | -6/Lower Caves | Learned Research garrison access intel 4623 | -6/Lower Caves | Identified exit to Lower Caves 4623 | -6/Lower Caves | Discovered exit to Lower Caves (range 11) 4661 | -6/Lower Caves | Ambushed by research squad 4684 | -6/Lower Caves | Entered another Lower Caves area 4684 | -6/Lower Caves | Accompanied by 1 ally 4685 | -6/Lower Caves | Commander's escort returned to base 4821 | -6/Lower Caves | Identified exit to Factory 4821 | -6/Lower Caves | Discovered exit to Factory (range 8) 4854 | -6/Lower Caves | Entered Factory 4854 | -5/Factory | Evolved 2 slots: Propulsion x1, Utility x1 5144 | -5/Factory | Build established: Hacker-Scout 5313 | -5/Factory | Identified exit to Upper Caves 5313 | -5/Factory | Discovered exit to Upper Caves (range 12) 5334 | -5/Factory | Entered Upper Caves 5471 | -5/Upper Caves | Learned Factory terminal intel 5550 | -5/Upper Caves | Identified exit to Upper Caves 5550 | -5/Upper Caves | Discovered exit to Upper Caves (range 17) 5584 | -5/Upper Caves | Entered another Upper Caves area 5598 | -5/Upper Caves | Identified exit to Factory 5598 | -5/Upper Caves | Discovered exit to Factory (range 5) 5612 | -5/Upper Caves | Entered Factory 5612 | -4/Factory | Evolved 2 slots: Propulsion x1, Utility x1 5613 | -4/Factory | Loaded intel: 25 terminal locations 5961 | -4/Factory | Identified exit to DSF 6445 | -4/Factory | Lost 3 parts (1p2n) 6726 | -4/Factory | Fabricated T-07 Excavator? 6927 | -4/Factory | Spotted B-86 Titan 6933 | -4/Factory | Identified exit to Upper Caves 6933 | -4/Factory | Discovered exit to Upper Caves (range 12) 6990 | -4/Factory | Entered Upper Caves 6993 | -4/Upper Caves | Learned 4 Research zone layouts 7039 | -4/Upper Caves | Encountered a Warlord checkpoint 7047 | -4/Upper Caves | Build established: Hacker-Ninja 7065 | -4/Upper Caves | Attracted the attention of an 0b10 outpost 7079 | -4/Upper Caves | Learned Research garrison access intel 7102 | -4/Upper Caves | Identified exit to Upper Caves 7102 | -4/Upper Caves | Discovered exit to Upper Caves (range 20) 7114 | -4/Upper Caves | Entered another Upper Caves area 7120 | -4/Upper Caves | Identified exit to Research 7120 | -4/Upper Caves | Discovered exit to Research (range 6) 7165 | -4/Upper Caves | Entered Research 7165 | -3/Research | Evolved 2 slots: Utility x2 7166 | -3/Research | Identified exit to Quarantine 7168 | -3/Research | Loaded intel: 25 terminal locations 7169 | -3/Research | Loaded intel: 3 garrison access locations 7322 | -3/Research | Identified exit to DSF 7322 | -3/Research | Entered DSF 7348 | -3/DSF | Additional patrols routed to DSF 7458 | -3/DSF | Found Gamma Bomb Array 7469 | -3/DSF | Sterilization system engaged 7480 | -3/DSF | Identified exit to Research 7480 | -3/DSF | Discovered exit to Research (range 15) 7489 | -3/DSF | Ambient heat levels rising (+10) 7496 | -3/DSF | Entered Research 7496 | -2/Research | Evolved 2 slots: Power x1, Propulsion x1 7497 | -2/Research | Loaded intel: 3 garrison access locations 7734 | -2/Research | Identified exit to Testing 7763 | -2/Research | Entered Testing 7797 | -2/Testing | Found Prototype Device 7797 | -2/Testing | Identified Exp. Focal Shield 7800 | -2/Testing | Found Prototype Launcher 7800 | -2/Testing | Identified Com. Tesla Bomb Launcher 7878 | -2/Testing | Found Prototype Hackware 7878 | -2/Testing | Identified System Mapper 7896 | -2/Testing | Found Prototype Launcher 7896 | -2/Testing | Identified Point Singularity Launcher 7903 | -2/Testing | Spotted PY-DCCT3G9IMP 8075 | -2/Testing | Identified exit to Access 8075 | -2/Testing | Discovered exit to Access (range 9) 8078 | -2/Testing | Entered Access 8078 | -1/Access | Evolved 1 slot: Utility x1 8184 | -1/Access | Build established: Wizard-Ninja 8185 | -1/Access | Fabricated A-27 Freighter (x1) 8318 | -1/Access | Identified exit to Command 8520 | -1/Access | Build established: Hacker-Ninja 8639 | -1/Access | Spotted B-99 Colossus 8639 | -1/Access | Spotted B-99 Colossus 9284 | -1/Access | Crushed by falling debris 9284 | -1/Access | System corruption reached 10% 9335 | -1/Access | Lost 6 parts (1p5u) 9395 | -1/Access | Entered Command 9750 | -1/Command | Spotted B-99 Colossus 9773 | -1/Command | Spotted Alpha 7 9773 | -1/Command | Spotted Striker 9773 | -1/Command | Spotted Executioner 9773 | -1/Command | Spotted Executioner 9773 | -1/Command | Spotted Alpha 7 9773 | -1/Command | Spotted Striker 9773 | -1/Command | Spotted Executioner 9773 | -1/Command | Spotted Executioner 9774 | -1/Command | Spotted B-99 Colossus 9774 | -1/Command | Spotted B-99 Colossus 9789 | -1/Command | Released all parts (12) 9793 | -1/Command | Core integrity fell below 50% 9802 | -1/Command | Core integrity fell below 20% 9808 | -1/Command | Destroyed by B-74 Champion with Powered Hammer Last Messages --------------- 09797_ Slug penetrates Striker. 09797_ Stasis field depleted. 09797_ Striker suffers critical hit (Destroy). 09797_ Slug penetrates Wall. 09797_ Slug penetrates Executioner. 09797_ Slug penetrates R-10 Processor. 09798_ Wall collapses. 09798_ Slug penetrates Wall. 09799_ Penetrated by Slug. 09799_ Slug penetrates Alpha 7. 09799_ Penetrated by Slug. 09800_ Stasis field depleted. 09801_ Penetrated by Slug. 09801_ Slug penetrates Quantum Router. 09802_ M-36 Artificer repairs Executioner. 09802_ Penetrated by Slug. 09803_ Slug penetrates Alpha 7. 09804_ Penetrated by Slug. 09804_ R-10 Processor collects Triangulator. 09808_ K-01 Serf cleans the Quantum Router. Map ----- +----------------------------------------------------+ | ???????????????????????????? ?? ##### | | ???????????????????????????? ?? | | ????????o??????????????????? ????????????# | | ???????????????????????????? ????????????# ## | | ????o??????????????????????? ????????????# # | | ???????????????????????????? ????????????# # | | ???????????????????????????? ????????????# # | | ????????????#?#??########### ############# # | | ???????????"""T""" | | ????????? """ """ #######+## ####+##### | | ????????? #?# # #?? ???# | | ???????? "" #?# ] # #??"""???# | | ???????? """" ?# # #? """T??# | | ???????? !! """" ?# # #? """"??## | | ??????? ! "" ### ! # ## """ ??? | | ??????? + # ## ??? | | ?????? ##+##### ######+##?? | | ??????? * ##### #?????????? | | ???????? ######### ? | | ?????????? ?# ## ##########+#####?????? | | ?????????? ## ] ## ##+###??????????????????? | | ??????????]] ## ## # g#??????????????????? | | ???????????] ## # # #??????????????????? | | ???????????] ## # # #??????????????????? | | ??????????? ## # #b g #??????????????????? | | ??????????? ## # @ #??????????????????? | | ??????????? ## # # ! #??????????????????? | | ??????????? ## # K#= #??????????????????? | | ??#+######## ## # # #??????????????????? | | ??# ## ## !# # #??????????????????? | | ??# ## ## # ######??????????????????? | | ??# ## #####+## #???????????????????????? | | ??# # #???????????????????????? | | ??# + #???????????????????????? | | ??# # #???????????????????????? | | ??# # #???????????????????????? | | ??# # " #???????????????????????? | | ??# # "" " #???????????????????????? | | ??# # " % "#??????????????????????? | | ??# "" # " "#??????????????????????? | | ??# """ # ##??????????????????????? | | ??# "R # #???????????????????????? | | ??# """ # #???????????????????????? | | ??# "" + % #???????????????????????? | | ??# ########### #???????????????????????? | | ??# * #?????????# #???????????????????????? | | ??#########?????????#%= ##??????????????????????? | | ???????????????????##%/*/"#??????????????????????? | | ??????????????????#""////=#??????????????????????? | | ??????????????????#" ^=! ##?????????????????????? | +----------------------------------------------------+ Best States ------------- Heat Dissipation 52 Energy Generation 39 Energy Capacity 325 Matter Stores 300 Matter Capacity 300 Sight Range 22 Robot Scan Range 16 Terrain Scan Range 16 Terrain Scan Density 10 ECM Strength 1 Jamming Range 16 Additional Mass Support 9 Corruption Block 30 Armor Coverage 225 Resistance: KI 35 Resistance: TH 35 Resistance: EX 35 Resistance: EM 35 Resistance: I 35 Resistance: S 35 Resistance: P 35 Power Shielding 66 Propulsion Shielding 33 Utility Shielding 66 Weapon Shielding 66 Point Defense Rating 160 Melee Speed Boost 40 Phase Shifting 15 Evasion (%) 91 Targeting Accuracy 5 Melee Accuracy 16 Launcher Accuracy 40 Target Analysis 12 Recoil Reduction 4 Offensive Hacking 50 Defensive Hacking 24 Item Schematics ----------------- Imp. Hover Unit | -9/Materials | Scanalyzed Signal Interpreter | -9/Materials | Scanalyzed Seismic Detector | -9/Materials | Scanalyzed Propulsion Shielding | -9/Materials | Scanalyzed Adv. Weight Redist. System | -8/Materials | Scanalyzed ECM Suite | -8/Materials | Scanalyzed Imp. Sensor Array | -8/Materials | Scanalyzed Field Propulsion Drive | -2/Testing | Scanalyzed Adv. Sensor Array | -2/Testing | Scanalyzed Robot Schematics ------------------ None Fabricated ------------ Propulsion Shielding | x2 | -6/Factory T-07 Excavator | x2 | -4/Factory | Preloaded A-27 Freighter | x1 | -1/Access | Preloaded Alien Tech Used ----------------- Core Expander Achievements -------------- None Challenges ------------ None Game ------ Seed PrecisionDroneActivator Manual? 0 Play Time 05:47:22 Cumulative 195.7 hours Start 2025.05.02 @ 05:04:09 End 2025.05.03 @ 03:33:34 Sessions 15 Manual Loads 0 Difficulty Explorer Special Mode None Game No. 39 Rogue 9 Adventurer 0 Explorer 30 Win Type - Total 0 Types 0/0/0/0/0/0/0/0/0 Lore% 28 Gallery% 44 Achievement% 44 Wizard Run 0 Options --------- Layout 1 ASCII 0 Keyboard 0 Movement Vi Keybinds 0 Fullscreen 1 Font 32/SmallcapsGlow Map View 50x40 Zoom Use 0% Tactical HUD 1 Map Filters NONE Filters NONE Steam 1 RUN: fa9224a8-5dea-4bd4-879e-26ecccf3a759